fUST/lending_fUST_20240728
["ID","MTS","AMOUNT","RATE_DAILY","PERIOD"]
[333401469,1722107445912,-610.03,0.0001452,2]
[333401470,1722107445921,-846.18,0.0001452,2]
[333401471,1722107445930,-825.36,0.0001452,2]
[333401472,1722107445940,-710.58478696,0.0001452,2]
[333401482,1722107446255,-530.01,0.00013698,2]
[333401484,1722107446266,-300.67521304,0.0001452,2]
[333401485,1722107446278,-1555.8,0.0001452,2]
[333401486,1722107446289,-893.59,0.0001452,2]
[333401487,1722107446300,-623.07,0.0001452,2]
[333401488,1722107446311,-500.0,0.0001452,2]
[333401489,1722107446320,-500.0,0.0001452,2]
[333401490,1722107446330,-500.0,0.0001452,2]
[333401491,1722107446340,-974.52,0.0001452,2]
[333401492,1722107446350,-459.92594088,0.0001452,2]
[333401495,1722107447040,-412.47405912,0.0001452,2]
[333401497,1722107447051,-636.72,0.0001452,2]
[333401500,1722107447060,-500.0,0.0001452,2]
[333401503,1722107447070,-652.43,0.0001452,2]
[333401505,1722107447081,-789.9,0.0001452,2]
[333401508,1722107447091,-500.0,0.0001452,2]
[333401511,1722107447101,-1121.98,0.0001452,2]
[333401513,1722107447111,-920.58,0.0001452,2]
[333401516,1722107447121,-1652.13,0.0001452,2]
[333401519,1722107447130,-500.0,0.0001452,2]
[333401522,1722107447139,-951.18,0.0001452,2]
[333401524,1722107447150,-2004.96,0.0001452,2]
[333401527,1722107447173,-500.0,0.0001452,2]
[333401529,1722107447183,-910.4,0.0001452,2]
[333401531,1722107447194,-530.19949839,0.0001452,2]
[333401532,1722107447218,-434.87050161,0.0001452,2]
[333401533,1722107447227,-151.0,0.00014572,2]
[333401534,1722107447237,-206.7714858,0.000146,2]
[333401535,1722107447246,-77.30392472,0.000146,2]
[333401536,1722107447259,-129.31560628,0.000146,2]
[333401537,1722107447269,-200.9776861,0.00014629,2]
[333401538,1722107447281,-158.14811454,0.00014629,2]
[333401539,1722107447291,-837.61442082,0.00014638,2]
[333401540,1722107447303,-4444.96788359,0.00014638,2]
[333401541,1722107447313,-3200.0,0.00014678,2]
[333401542,1722107447325,-276.271723,0.00014678,2]
[333401543,1722107447335,-276.271723,0.00014678,2]
[333401544,1722107447344,-151.0,0.00014678,2]
[333401545,1722107447353,-151.0,0.00014678,2]
[333401546,1722107447362,-210.469016,0.00014678,2]
[333401547,1722107447371,-210.469016,0.00014678,2]
[333401548,1722107447381,-2094.06045063,0.0001469,2]
[333401549,1722107447390,-1011.39369225,0.0001469,2]
[333401550,1722107447400,-994.48897622,0.0001469,2]
[333401551,1722107447409,-154.68290005,0.0001469,2]
[333401552,1722107447418,-261.58676019,0.0001469,2]
[333401553,1722107449001,-500.0,0.00014245,2]
[333401554,1722107449010,-500.0,0.00014519,2]
[333401555,1722107449020,-554.2023862,0.0001469,2]
[333401556,1722107449031,-514.36552132,0.0001469,2]
[333401557,1722107449040,-540.412791,0.0001469,2]
[333401558,1722107449051,-151.0,0.0001469,2]
[333401559,1722107449061,-151.0,0.0001469,2]
[333401560,1722107449071,-8532.63705879,0.00014784,2]
[333401561,1722107449085,-5962.24786081,0.00014784,2]
[333401562,1722107449094,-500.0,0.00014793,2]
[333401563,1722107449103,-364.75213919,0.00014794,2]
[333401564,1722107449115,-41.53269011,0.00014794,2]
[333401565,1722107449124,-154.7215013,0.00014794,2]
[333401566,1722107449133,-114.47814891,0.00014794,2]
[333401567,1722107449148,-568.97185109,0.00014794,2]
[333401568,1722107449159,-500.0,0.00014794,2]
[333401569,1722107449169,-401.528253,0.00014794,2]
[333401570,1722107586608,269.50658035,0.0001,2]
[333401583,1722108021247,273.37336231,9.9e-05,2]
[333401584,1722108029115,273.37336231,9.9e-05,2]
[333401585,1722108037171,273.37336231,9.9e-05,2]
[333401587,1722108045031,273.37336231,9.9e-05,2]
[333401588,1722108053948,273.37336231,9.9e-05,2]
[333401591,1722108061803,273.37336231,9.9e-05,2]
[333401592,1722108069879,273.37336231,9.9e-05,2]
[333401594,1722108078337,273.37336231,9.9e-05,2]
[333401596,1722108087223,273.37336231,9.9e-05,2]
[333401597,1722108094905,273.37336231,9.9e-05,2]
[333401598,1722108102944,273.37336231,9.9e-05,2]
[333401599,1722108107578,778.99945191,9.999e-05,2]
[333401600,1722108111034,273.37336231,9.9e-05,2]
[333401601,1722108115696,567.90034915,9.999e-05,2]
[333401602,1722108116561,240.52034027,9.999e-05,2]
[333401604,1722108119135,273.37336231,9.9e-05,2]
[333401605,1722108134537,273.37336231,9.9e-05,2]
[333401606,1722108142225,273.37336231,9.9e-05,2]
[333401607,1722108150894,273.37336231,9.9e-05,2]
[333401608,1722108158714,273.37336231,9.9e-05,2]
[333401609,1722108254363,273.37336231,9.9e-05,2]
[333401611,1722108340123,-850.55029372,0.00010959,2]
[333401612,1722108426222,-150.96,0.00010959,2]
[333401613,1722108426245,-2185.11493551,0.00012176,2]
[333401614,1722108437229,-754.81,0.00010959,2]
[333401615,1722108437253,-65.63526069,0.00012176,2]
[333401616,1722108437276,-159.924853,0.00012692,2]
[333401617,1722108437301,-117.82006631,0.00012747,2]
[333401618,1722108444113,-42.10478669,0.00012747,2]
[333401619,1722108444139,-159.924853,0.00012802,2]
[333401620,1722108444167,-159.924853,0.00012857,2]
[333401621,1722108444190,-159.924853,0.00012912,2]
[333401622,1722108444213,-159.924853,0.00012968,2]
[333401623,1722108444236,-191.57188391,0.00013,2]
[333401676,1722108633751,-159.924853,0.00012632,2]
[333401678,1722108633762,-101.59273045,0.00012742,2]
[333401777,1722108640437,-58.33212255,0.00012742,2]
[333401778,1722108640447,-159.924853,0.00012852,2]
[333401779,1722108640457,-159.924853,0.00012961,2]
[333401780,1722108640466,-300.0,0.00012999,2]
[333401781,1722108640475,-300.0,0.00012999,2]
[333401782,1722108640486,-624.21726248,0.00013,2]
[333401783,1722108640497,-994.48897622,0.00013,2]
[333401784,1722108640509,-4771.70091255,0.00013,2]
[333401785,1722108640518,-159.924853,0.00013071,2]
[333401786,1722108640528,-159.924853,0.00013181,2]
[333401787,1722108640538,-587.8936373,0.00013288,2]
[333401788,1722108640548,-159.924853,0.0001329,2]
[333401789,1722108640557,-171.441296,0.00013425,2]
[333401790,1722108640568,-1011.39369225,0.000136,2]
[333401791,1722108640577,-21868.84036121,0.000136,2]
[333401792,1722108640587,-2651.23066387,0.00013655,2]
[333401793,1722108640597,-1409.0,0.00013667,2]
[333401794,1722108640607,-150.0,0.00013667,2]
[333401795,1722108640616,-505.0,0.00013667,2]
[333401796,1722108640626,-66576.84457727,0.00013686,2]
[333401797,1722108640646,-1178.20479994,0.00013686,2]
[333401798,1722108640680,-23358.2980526,0.00013686,2]
[333401799,1722108640690,-23008.4789154,0.00013688,2]
[333401800,1722108640700,-273.03,0.00013698,2]
[333401801,1722108640709,-500.0,0.00013698,2]
[333401802,1722108640720,-500.0,0.00013698,2]
[333401803,1722108640730,-500.0,0.00013698,2]
[333401804,1722108640740,-500.0,0.00013698,2]
[333401805,1722108640749,-500.0,0.00013698,2]
[333401806,1722108640760,-500.0,0.00013698,2]
[333401807,1722108640770,-500.0,0.00013698,2]
[333401808,1722108640779,-735.59,0.00013698,2]
[333401809,1722108640789,-500.0,0.00013698,2]
[333401810,1722108640799,-500.0,0.00013698,2]
[333401811,1722108640810,-500.0,0.00013698,2]
[333401812,1722108640819,-500.0,0.00013698,2]
[333401813,1722108640829,-270.72779516,0.00013698,2]
[333401814,1722108640839,-500.0,0.00013698,2]
[333401815,1722108640849,-825.84,0.00013698,2]
[333401816,1722108640859,-500.0,0.00013698,2]
[333401817,1722108640869,-500.0,0.00013698,2]
[333401818,1722108640878,-500.0,0.00013698,2]
[333401819,1722108640887,-500.0,0.00013698,2]
[333401820,1722108640897,-500.0,0.00013698,2]
[333401821,1722108640907,-454.58151985,0.00013698,2]
[333401822,1722108640918,-500.0,0.00013698,2]
[333401823,1722108640928,-579.62,0.00013698,2]
[333401824,1722108640939,-619.62,0.00013698,2]
[333401825,1722108640948,-500.0,0.00013698,2]
[333401826,1722108640958,-500.0,0.00013698,2]
[333401827,1722108640968,-500.0,0.00013698,2]
[333401828,1722108640978,-500.0,0.00013698,2]
[333401829,1722108640987,-743.84,0.00013698,2]
[333401830,1722108640997,-500.0,0.00013698,2]
[333401831,1722108641008,-653.59,0.00013698,2]
[333401832,1722108641019,-551.11,0.00013698,2]
[333401833,1722108641030,-759.33,0.00013698,2]
[333401834,1722108641039,-500.0,0.00013698,2]
[333401835,1722108641049,-500.0,0.00013698,2]
[333401836,1722108641059,-506.13,0.00013698,2]
[333401837,1722108641069,-500.0,0.00013698,2]
[333401838,1722108641078,-500.0,0.00013698,2]
[333401839,1722108641088,-500.0,0.00013698,2]
[333401840,1722108641098,-852.63,0.00013698,2]
[333401841,1722108641107,-837.83,0.00013698,2]
[333401842,1722108641117,-3158.57,0.00013698,2]
[333401843,1722108641126,-924.86,0.00013698,2]
[333401844,1722108641135,-599.25,0.00013698,2]
[333401845,1722108641145,-500.0,0.00013698,2]
[333401846,1722108641154,-500.0,0.00013698,2]
[333401847,1722108641164,-500.0,0.00013698,2]
[333401848,1722108641174,-500.0,0.00013698,2]
[333401849,1722108641183,-500.0,0.00013698,2]
[333401850,1722108641192,-500.0,0.00013698,2]
[333401851,1722108641202,-503.21326724,0.00013698,2]
[333401852,1722108641212,-1474.19,0.00013698,2]
[333401853,1722108641227,-500.5349979,0.00013698,2]
[333401854,1722108641239,-500.0,0.00013698,2]
[333401855,1722108641248,-5496.08,0.00013698,2]
[333401856,1722108641261,-500.0,0.00013698,2]
[333401857,1722108641272,-500.0,0.00013698,2]
[333401858,1722108641282,-871.45,0.00013698,2]
[333401859,1722108641291,-500.0,0.00013698,2]
[333401860,1722108641302,-734.84,0.00013698,2]
[333401861,1722108641311,-2413.63,0.00013698,2]
[333401862,1722108641321,-500.0,0.00013698,2]
[333401863,1722108641330,-1566.46,0.00013698,2]
[333401864,1722108641340,-500.0,0.00013698,2]
[333401865,1722108641349,-500.0,0.00013698,2]
[333401866,1722108641358,-1006.55,0.00013698,2]
[333401867,1722108641368,-500.0,0.00013698,2]
[333401868,1722108641377,-500.0,0.00013698,2]
[333401869,1722108641387,-570.3,0.00013698,2]
[333401870,1722108641397,-704.01,0.00013698,2]
[333401871,1722108641406,-500.0,0.00013698,2]
[333401872,1722108641415,-1269.9,0.00013698,2]
[333401873,1722108641425,-500.0,0.00013698,2]
[333401874,1722108641434,-926.99,0.00013698,2]
[333401875,1722108641443,-500.0,0.00013698,2]
[333401876,1722108641453,-689.02,0.00013698,2]
[333401877,1722108641462,-500.0,0.00013698,2]
[333401878,1722108641471,-500.0,0.00013698,2]
[333401879,1722108641482,-787.61,0.00013698,2]
[333401880,1722108641492,-559.19,0.00013698,2]
[333401881,1722108641502,-500.0,0.00013698,2]
[333401882,1722108641512,-500.0,0.00013698,2]
[333401883,1722108641521,-500.0,0.00013698,2]
[333401884,1722108641530,-3871.8,0.00013698,2]
[333401885,1722108641540,-840.59,0.00013698,2]
[333401886,1722108641550,-609.21257634,0.00013698,2]
[333401887,1722108641559,-1426.15,0.00013698,2]
[333401888,1722108641568,-500.0,0.00013698,2]
[333401889,1722108641578,-723.32,0.00013698,2]
[333401890,1722108641587,-771.43,0.00013698,2]
[333401891,1722108641597,-500.0,0.00013698,2]
[333401892,1722108641606,-500.0,0.00013698,2]
[333401893,1722108641616,-775.67,0.00013698,2]
[333401894,1722108641625,-500.0,0.00013698,2]
[333401895,1722108641635,-500.0,0.00013698,2]
[333401896,1722108641644,-2229.08,0.00013698,2]
[333401897,1722108641654,-541.71854045,0.00013698,2]
[333401898,1722108641663,-610.19,0.00013698,2]
[333401899,1722108641675,-796.78,0.00013698,2]
[333401900,1722108641684,-500.0,0.00013698,2]
[333401901,1722108641694,-500.0,0.00013698,2]
[333401902,1722108641703,-571.15,0.00013698,2]
[333401903,1722108641714,-756.58,0.00013698,2]
[333401904,1722108641723,-912.91,0.00013698,2]
[333401905,1722108641732,-1075.23,0.00013698,2]
[333401906,1722108641742,-562.34,0.00013698,2]
[333401907,1722108641751,-819.12,0.00013698,2]
[333401908,1722108641760,-935.45,0.00013698,2]
[333401909,1722108641769,-651.34,0.00013698,2]
[333401910,1722108641779,-500.0,0.00013698,2]
[333401911,1722108641788,-2021.01,0.00013698,2]
[333401912,1722108641797,-933.91,0.00013698,2]
[333401913,1722108641808,-1585.09,0.00013698,2]
[333401914,1722108641819,-500.0,0.00013698,2]
[333401915,1722108641828,-911.55,0.00013698,2]
[333401916,1722108641837,-294.36144422,0.00013698,2]
[333401917,1722108641846,-500.0,0.00013698,2]
[333401918,1722108641855,-500.0,0.00013698,2]
[333401919,1722108641864,-500.0,0.00013698,2]
[333401920,1722108641874,-500.0,0.00013698,2]
[333401921,1722108641884,-276.5060661,0.00013698,2]
[333401922,1722108641893,-500.0,0.00013698,2]
[333401923,1722108641902,-500.0,0.00013698,2]
[333401924,1722108641912,-500.0,0.00013698,2]
[333401925,1722108641921,-500.0,0.00013698,2]
[333401926,1722108641931,-500.0,0.00013698,2]
[333401927,1722108641941,-244.60138534,0.00013698,2]
[333401928,1722108641950,-500.0,0.00013698,2]
[333401929,1722108641960,-500.0,0.00013698,2]
[333401930,1722108641969,-240.95534342,0.00013698,2]
[333401931,1722108641979,-515.05755426,0.00013698,2]
[333401932,1722108641988,-497.159703,0.00013699,2]
[333401933,1722108641998,-267.98443661,0.000137,2]
[333401934,1722108642009,-541.10305995,0.00013862,2]
[333401935,1722108642018,-23008.4789154,0.00013962,2]
[333401936,1722108642028,-1953.36752311,0.00013972,5]
[333401937,1722108642038,-237.48,0.00013972,2]
[333401938,1722108642048,-500.0,0.00013972,2]
[333401939,1722108642059,-500.0,0.00013972,2]
[333401940,1722108642069,-735.59,0.00013972,2]
[333401941,1722108642078,-500.0,0.00013972,2]
[333401942,1722108642087,-825.84,0.00013972,2]
[333401943,1722108642097,-500.0,0.00013972,2]
[333401944,1722108642106,-500.0,0.00013972,2]
[333401945,1722108642116,-500.0,0.00013972,2]
[333401946,1722108642126,-500.0,0.00013972,2]
[333401947,1722108642135,-500.0,0.00013972,2]
[333401948,1722108642145,-579.62,0.00013972,2]
[333401949,1722108642154,-619.62,0.00013972,2]
[333401950,1722108642163,-500.0,0.00013972,2]
[333401951,1722108642172,-500.0,0.00013972,2]
[333401952,1722108642182,-500.0,0.00013972,2]
[333401953,1722108642191,-500.0,0.00013972,2]
[333401954,1722108642200,-743.84,0.00013972,2]
[333401955,1722108642210,-500.0,0.00013972,2]
[333401956,1722108642219,-653.59,0.00013972,2]
[333401957,1722108642229,-551.11,0.00013972,2]
[333401958,1722108642238,-759.33,0.00013972,2]
[333401959,1722108642248,-500.0,0.00013972,2]
[333401960,1722108642261,-500.0,0.00013972,2]
[333401961,1722108642272,-506.13,0.00013972,2]
[333401962,1722108642282,-500.0,0.00013972,2]
[333401963,1722108642291,-500.0,0.00013972,2]
[333401964,1722108642302,-500.0,0.00013972,2]
[333401965,1722108642314,-852.63,0.00013972,2]
[333401966,1722108642323,-837.83,0.00013972,2]
[333401967,1722108642332,-3158.57,0.00013972,2]
[333401968,1722108642341,-924.86,0.00013972,2]
[333401969,1722108642350,-599.25,0.00013972,2]
[333401970,1722108642359,-500.0,0.00013972,2]
[333401971,1722108642368,-500.0,0.00013972,2]
[333401972,1722108642377,-500.0,0.00013972,2]
[333401974,1722108642386,-1474.19,0.00013972,2]
[333401975,1722108642395,-500.0,0.00013972,2]
[333401976,1722108642405,-5496.08,0.00013972,2]
[333401977,1722108642415,-500.0,0.00013972,2]
[333401978,1722108642424,-871.45,0.00013972,2]
[333401979,1722108642433,-734.84,0.00013972,2]
[333401980,1722108642443,-2413.63,0.00013972,2]
[333401981,1722108642452,-500.0,0.00013972,2]
[333401982,1722108642461,-1566.46,0.00013972,2]
[333401983,1722108642470,-500.0,0.00013972,2]
[333401984,1722108642479,-1006.55,0.00013972,2]
[333401985,1722108642489,-500.0,0.00013972,2]
[333401986,1722108642498,-500.0,0.00013972,2]
[333401987,1722108642509,-570.3,0.00013972,2]
[333401988,1722108642518,-704.01,0.00013972,2]
[333401989,1722108642527,-500.0,0.00013972,2]
[333401991,1722108642538,-1269.9,0.00013972,2]
[333401993,1722108642547,-500.0,0.00013972,2]
[333401995,1722108642556,-926.99,0.00013972,2]
[333401997,1722108642566,-500.0,0.00013972,2]
[333401999,1722108642575,-689.02,0.00013972,2]
[333402001,1722108642584,-380.43705623,0.00013972,2]
[333402003,1722108642594,-787.61,0.00013972,2]
[333402005,1722108642603,-559.19,0.00013972,2]
[333402006,1722108642612,-500.0,0.00013972,2]
[333402007,1722108642622,-500.0,0.00013972,2]
[333402008,1722108642631,-500.0,0.00013972,2]
[333402009,1722108642640,-1663.81125421,0.00013972,2]
[333402016,1722108643065,-457.09156849,0.00013555,2]
[333402017,1722108643077,-622.2,0.00013555,2]
[333402018,1722108643091,-1165.3865824,0.00013555,2]
[333402019,1722108643101,-2207.98874579,0.00013972,2]
[333402020,1722108643111,-840.59,0.00013972,2]
[333402021,1722108643121,-1426.15,0.00013972,2]
[333402022,1722108643132,-218.34227181,0.00013972,2]
[333402029,1722108646107,-500.0,0.00013698,2]
[333402030,1722108646116,-135.6,0.00013698,2]
[333402036,1722109004091,248.91580339,9.999e-05,2]
[333402037,1722109008261,600.44431657,9.999e-05,2]
[333402038,1722109023059,749.98341536,9.999e-05,2]
[333402040,1722109070800,160.05561459,9.999e-05,2]
[333402041,1722109100175,248.91580339,9.999e-05,2]
[333402042,1722109106007,599.7538577,9.999e-05,2]
[333402044,1722109167839,159.92709889,9.999e-05,2]
[333402045,1722109213085,201.38661079,9.999e-05,2]
[333402046,1722109497129,154.76012181,9.999e-05,2]
[333402047,1722109548413,-191.47619051,0.00010859,2]
[333402048,1722109548440,-170.31,0.00010959,2]
[333402049,1722109548465,-525.76078824,0.00010959,2]
[333402050,1722109628098,-325.83921176,0.00010959,2]
[333402051,1722109628121,-300.0,0.00012077,2]
[333402052,1722109628142,-287.0,0.00012077,2]
[333402053,1722109628164,-74.28755124,0.00012078,2]
[333402054,1722109628193,-321.73525097,0.00012078,2]
[333402055,1722109640796,257.6273503,9.999e-05,2]
[333402056,1722109644102,-1215.017092,0.00012078,2]
[333402057,1722109644134,-1280.98412797,0.00012078,2]
[333402058,1722109689535,398.82808475,9.999e-05,2]
[333402063,1722109760135,-300.0,0.00010958,2]
[333402064,1722109760157,-299.53,0.00010959,2]
[333402065,1722109760178,-249.61,0.00010959,2]
[333402066,1722109760198,-201.95983754,0.00010959,2]
[333402067,1722109761123,-6.05016246,0.00010959,2]
[333402068,1722109761145,-173.34,0.00010959,2]
[333402069,1722109761165,-173.34,0.00010959,2]
[333402070,1722109761186,-247.26983754,0.00010959,2]
[333402071,1722109773118,-446.12016246,0.00010959,2]
[333402072,1722109773143,-420.0,0.00012054,2]
[333402073,1722109773168,-643.53877871,0.00012078,2]
[333402093,1722109832071,-166.666666,0.00011904,2]
[333402094,1722109832081,-300.0,0.00012077,2]
[333402095,1722109832090,-10519.14880802,0.00012078,2]
[333402463,1722109838738,-1706.48992679,0.00012078,2]
[333402464,1722109838748,-166.300097,0.0001227,2]
[333402465,1722109838757,-512.01149101,0.00012532,2]
[333402466,1722109838768,-166.300097,0.0001259,2]
[333402467,1722109838777,-166.300097,0.0001291,2]
[333402468,1722109838788,-420.0,0.00013285,2]
[333402469,1722109838798,-293.0735316,0.00013378,2]
[333402470,1722109838808,-170.761326,0.00013425,2]
[333402471,1722109838818,-294.0187007,0.00013478,2]
[333402472,1722109838828,-294.0187007,0.00013478,2]
[333402473,1722109838837,-239.2336341,0.000135,2]
[333402474,1722109838846,-166.666666,0.00013527,2]
[333402475,1722109838856,-541.10305995,0.00013598,2]
[333402476,1722109838865,-1964.09338202,0.00013598,2]
[333402477,1722109838874,-260.4420407,0.00013616,2]
[333402478,1722109838883,-206.7714858,0.00013616,2]
[333402479,1722109838893,-65574.1649089,0.00013688,2]
[333402480,1722109838903,-1409.0,0.00013694,2]
[333402481,1722109838912,-500.0,0.00013698,2]
[333402482,1722109838922,-374.81731509,0.00013698,2]
[333402483,1722109838931,-500.0,0.00013698,2]
[333402484,1722109838941,-500.0,0.00013698,2]
[333402485,1722109838950,-500.0,0.00013698,2]
[333402486,1722109838959,-500.0,0.00013698,2]
[333402487,1722109838968,-538.54,0.00013698,2]
[333402488,1722109838977,-500.0,0.00013698,2]
[333402489,1722109838986,-193.50822095,0.00013698,2]
[333402490,1722109838995,-506.05334032,0.00013698,2]
[333402491,1722109839005,-500.0,0.00013698,2]
[333402492,1722109839014,-500.0,0.00013698,2]
[333402493,1722109839024,-500.0,0.00013698,2]
[333402494,1722109839035,-500.0,0.00013698,2]
[333402495,1722109839044,-500.0,0.00013698,2]
[333402496,1722109839054,-500.0,0.00013698,2]
[333402497,1722109839066,-500.0,0.00013698,2]
[333402498,1722109839075,-500.0,0.00013698,2]
[333402499,1722109839083,-507.68478184,0.00013698,2]
[333402500,1722109839095,-500.0,0.00013698,2]
[333402501,1722109839105,-500.0,0.00013698,2]
[333402502,1722109839114,-500.0,0.00013698,2]
[333402503,1722109839123,-509.52484462,0.00013698,2]
[333402504,1722109839133,-500.0,0.00013698,2]
[333402505,1722109839144,-500.0,0.00013698,2]
[333402506,1722109839157,-500.0,0.00013698,2]
[333402507,1722109839167,-500.0,0.00013698,2]
[333402508,1722109839177,-271.80768515,0.00013698,2]
[333402509,1722109839188,-500.0,0.00013698,2]
[333402510,1722109839197,-500.0,0.00013698,2]
[333402511,1722109839207,-500.0,0.00013698,2]
[333402512,1722109839218,-297.40496233,0.00013698,2]
[333402513,1722109839227,-500.0,0.00013698,2]
[333402514,1722109839237,-539.44620326,0.00013698,2]
[333402515,1722109839247,-500.0,0.00013698,2]
[333402516,1722109839256,-500.0,0.00013698,2]
[333402517,1722109839266,-500.0,0.00013698,2]
[333402518,1722109839276,-500.0,0.00013698,2]
[333402519,1722109839286,-1019.17206653,0.00013698,2]
[333402520,1722109839297,-500.0,0.00013698,2]
[333402521,1722109839307,-500.0,0.00013698,2]
[333402522,1722109839318,-500.0,0.00013698,2]
[333402523,1722109839328,-500.0,0.00013698,2]
[333402524,1722109839338,-500.0,0.00013698,2]
[333402525,1722109839348,-500.0,0.00013698,2]
[333402526,1722109839358,-500.0,0.00013698,2]
[333402527,1722109839367,-500.0,0.00013698,2]
[333402528,1722109839377,-500.0,0.00013698,2]
[333402529,1722109839387,-500.0,0.00013698,2]
[333402530,1722109839397,-401.57602234,0.00013698,2]
[333402531,1722109839406,-500.0,0.00013698,2]
[333402532,1722109839416,-500.0,0.00013698,2]
[333402533,1722109839425,-500.0,0.00013698,2]
[333402534,1722109839435,-250.51049612,0.00013698,2]
[333402535,1722109839450,-249.48950388,0.00013698,2]
[333402536,1722109839459,-500.0,0.00013698,2]
[333402537,1722109839469,-500.0,0.00013698,2]
[333402538,1722109839479,-515.05755426,0.00013698,2]
[333402539,1722109839489,-500.0,0.00013698,2]
[333402540,1722109839498,-500.0,0.00013698,2]
[333402541,1722109839508,-500.0,0.00013698,2]
[333402542,1722109839518,-500.0,0.00013698,2]
[333402543,1722109839529,-199.91666043,0.00013698,2]
[333402544,1722109839542,-300.08333957,0.00013698,2]
[333402545,1722109839552,-358.52666043,0.00013698,2]
[333402546,1722109839564,-141.47333957,0.00013698,2]
[333402547,1722109839574,-195.89558548,0.00013698,2]
[333402548,1722109839583,-500.0,0.00013698,2]
[333402549,1722109839594,-537.67,0.00013698,2]
[333402550,1722109839603,-500.0,0.00013698,2]
[333402551,1722109839613,-500.0,0.00013698,2]
[333402552,1722109839622,-208.22746308,0.00013698,2]
[333402553,1722109839635,-314.30097705,0.00013698,2]
[333402554,1722109839645,-500.0,0.00013698,2]
[333402555,1722109839655,-500.0,0.00013698,2]
[333402556,1722109839664,-500.0,0.00013698,2]
[333402557,1722109839674,-500.0,0.00013698,2]
[333402558,1722109839683,-574.33,0.00013698,2]
[333402559,1722109839693,-500.0,0.00013698,2]
[333402560,1722109839702,-500.0,0.00013698,2]
[333402561,1722109839712,-454.58151985,0.00013698,2]
[333402562,1722109839722,-500.0,0.00013698,2]
[333402563,1722109839737,-500.0,0.00013698,2]
[333402564,1722109839747,-601.04,0.00013698,2]
[333402565,1722109839756,-500.0,0.00013698,2]
[333402566,1722109839766,-500.0,0.00013698,2]
[333402567,1722109839777,-608.84,0.00013698,2]
[333402568,1722109839788,-500.0,0.00013698,2]
[333402570,1722109839798,-34.20301101,0.00013698,2]
[333402571,1722109839814,-465.79698899,0.00013698,2]
[333402572,1722109839823,-649.19,0.00013698,2]
[333402573,1722109839833,-500.0,0.00013698,2]
[333402574,1722109839843,-694.13,0.00013698,2]
[333402575,1722109839853,-500.0,0.00013698,2]
[333402576,1722109839863,-500.0,0.00013698,2]
[333402577,1722109839872,-500.0,0.00013698,2]
[333402578,1722109839882,-503.21326724,0.00013698,2]
[333402579,1722109839892,-500.0,0.00013698,2]
[333402580,1722109839902,-500.5349979,0.00013698,2]
[333402581,1722109839912,-500.0,0.00013698,2]
[333402582,1722109839922,-500.0,0.00013698,2]
[333402583,1722109839932,-500.0,0.00013698,2]
[333402584,1722109839942,-500.0,0.00013698,2]
[333402585,1722109839952,-500.0,0.00013698,2]
[333402586,1722109839961,-500.0,0.00013698,2]
[333402587,1722109839971,-500.0,0.00013698,2]
[333402588,1722109839980,-500.0,0.00013698,2]
[333402589,1722109839990,-500.0,0.00013698,2]
[333402590,1722109839999,-600.53872137,0.00013698,2]
[333402591,1722109840009,-500.0,0.00013698,2]